[Event "28th Hit Open-A 2024"]
[Site "Nova Gorica"]
[Date "2024.01.26"]
[Round "1.9"]
[White "Fercec, Nenad"]
[Black "Ceschia, Ivano"]
[Result "1/2-1/2"]
[ECO "B33"]
[WhiteElo "2410"]
[BlackElo "2183"]
[Annotator "RC"]
[PlyCount "60"]
[EventDate "2024.01.22"]
[EventType "swiss"]
[EventCountry "SLO"]
[SourceTitle "playchess.com"]
[Source "ChessBase"]
[SourceQuality "1"]
[TimeControl "5400+30"]

1. e4 {[%emt 0:00:06]} c5 {[%emt 0:00:04]} 2. Nf3 {[%emt 0:00:06]} Nc6 {[%emt 0:00:16]} 3. d4 {[%emt 0:00:09]} cxd4 {[%emt 0:00:05]} 4. Nxd4 {[%emt 0:00:08]} Qb6 {[%emt 0:00:04]} 5. Nb3 {[%emt 0:00:19]} Nf6 {[%emt 0:00:08]} 6. Nc3 {[%emt 0:00:14]} e6 {[%emt 0:00:07]} 7. Bd3 {[%emt 0:00:36]} Bb4 {[%emt 0:09:03]} 8. O-O {[%emt 0:00:15]} O-O {[%emt 0:25:29]} 9. Bg5 {[%emt 0:11:29]} Be7 {[%emt 0:03:34]} 10. Kh1 {[%emt 0:01:57]} d5 {[%emt 0:13:27]} 11. exd5 {[%emt 0:01:20]} Nxd5 {[%emt 0:02:01]} 12. Nxd5 {[%emt 0:03:53]} exd5 {[%emt 0:00:05]} 13. Bxe7 {[%emt 0:02:05]} Nxe7 {[%emt 0:00:08]} 14. Qh5 {[%emt 0:01:04]} g6 {[%emt 0:01:49]} 15. Qe5 {[%emt 0:00:15]} Nc6 {[%emt 0:08:41]} 16. Qxd5 {[%emt 0:01:29]} Nb4 {[%emt 0:00:07]} 17. Qc5 {[%emt 0:02:56]} Nxd3 {[%emt 0:00:11]} 18. cxd3 {[%emt 0:00:45]} Be6 {[%emt 0:04:46]} 19. Rfc1 {[%emt 0:01:01]} Bxb3 {[%emt 0:02:19]} 20. axb3 {[%emt 0:01:37]} Qxb3 {[%emt 0:00:32]} 21. Rxa7 {[%emt 0:00:59]} Qxb2 {[%emt 0:03:45]} 22. Rxa8 {[%emt 0:00:47]} Rxa8 {[%emt 0:00:09]} 23. h4 {[%emt 0:00:16]} Ra2 {[%emt 0:04:12]} 24. Kg1 {[%emt 0:07:27]} h5 {[%emt 0:03:05]} 25. Rc4 {[%emt 0:01:38]} Ra1+ {[%emt 0:04:50]} 26. Kh2 {[%emt 0:00:08]} Qf6 {[%emt 0:00:26]} 27. Qd4 {[%emt 0:03:38]} Qxd4 {[%emt 0:00:41]} 28. Rxd4 {[%emt 0:00:06]} b5 {[%emt 0:01:04]} 29. Rb4 {[%emt 0:00:21]} Ra3 {[%emt 0:00:08]} 30. d4 {[%emt 0:00:46]} Ra4 {[%emt 0:00:12]} 1/2-1/2

[Event "28th Hit Open-A 2024"]
[Site "Nova Gorica"]
[Date "2024.01.26"]
[Round "1.10"]
[White "Siraj, Svit"]
[Black "Karacsonyi, Gellert"]
[Result "0-1"]
[ECO "C49"]
[WhiteElo "2182"]
[BlackElo "2398"]
[Annotator "RC"]
[PlyCount "64"]
[EventDate "2024.01.22"]
[EventType "swiss"]
[EventCountry "SLO"]
[SourceTitle "playchess.com"]
[Source "ChessBase"]
[SourceQuality "1"]
[TimeControl "5400+30"]

1. e4 {[%emt 0:00:04]} e5 {[%emt 0:00:06]} 2. Nf3 {[%emt 0:00:05]} Nc6 {[%emt 0:00:06]} 3. Nc3 {[%emt 0:00:13]} Nf6 {[%emt 0:00:07]} 4. Bb5 {[%emt 0:00:11]} Bb4 {[%emt 0:00:56]} 5. O-O {[%emt 0:00:15]} O-O {[%emt 0:00:10]} 6. d3 {[%emt 0:00:08]} Bxc3 {[%emt 0:01:28]} 7. bxc3 {[%emt 0:00:48]} d6 {[%emt 0:00:08]} 8. h3 {[%emt 0:01:54]} a6 {[%emt 0:00:23]} 9. Ba4 {[%emt 0:00:23]} Ne7 {[%emt 0:02:53]} 10. Re1 {[%emt 0:01:41]} Ng6 {[%emt 0:00:22]} 11. Bb3 {[%emt 0:00:44]} Qe7 {[%emt 0:02:39]} 12. a4 {[%emt 0:00:53]} Be6 {[%emt 0:04:44]} 13. Ba3 {[%emt 0:08:21]} Rfe8 {[%emt 0:07:59]} 14. d4 {[%emt 0:01:56]} Bxb3 {[%emt 0:03:45]} 15. cxb3 {[%emt 0:00:14]} Qe6 {[%emt 0:01:47]} 16. c4 {[%emt 0:09:45]} Nf4 {[%emt 0:05:51]} 17. Ng5 {[%emt 0:14:20]} Qd7 {[%emt 0:03:19]} 18. dxe5 {[%emt 0:04:55]} Rxe5 {[%emt 0:05:23]} 19. Qd2 {[%emt 0:00:21]} N6h5 {[%emt 0:02:26]} 20. Nf3 {[%emt 0:03:03]} Re6 {[%emt 0:00:45]} 21. Kh1 {[%emt 0:03:09]} Rae8 {[%emt 0:04:19]} 22. e5 {[%emt 0:13:25]} Rg6 {[%emt 0:10:58]} 23. exd6 {[%emt 0:01:10]} Rxe1+ {[%emt 0:02:15]} 24. Rxe1 {[%emt 0:00:07]} Rxg2 {[%emt 0:05:52]} 25. Re8+ {[%emt 0:02:07]} Qxe8 {[%emt 0:00:06]} 26. d7 {[%emt 0:00:15]} Qd8 {[%emt 0:00:07]} 27. Qd4 {[%emt 0:05:16]} Rxf2 {[%emt 0:00:42]} 28. Qxf2 {[%emt 0:03:38]} Qxd7 {[%emt 0:00:10]} 29. h4 {[%emt 0:00:10]} Qh3+ {[%emt 0:00:23]} 30. Kg1 {[%emt 0:00:06]} Ng3 {[%emt 0:00:32]} 31. Qd2 {[%emt 0:00:41]} Qh1+ {[%emt 0:00:25]} 32. Kf2 {[%emt 0:00:07]} Ne4+ {[%emt 0:00:05]} 0-1

[Event "28th Hit Open-A 2024"]
[Site "Nova Gorica"]
[Date "2024.01.26"]
[Round "1.11"]
[White "Kulkarni Bhakti"]
[Black "Kozlovic, Jernej"]
[Result "1-0"]
[ECO "A11"]
[WhiteElo "2364"]
[BlackElo "2174"]
[Annotator "ChessBase"]
[PlyCount "135"]
[EventDate "2024.01.22"]
[EventType "swiss"]
[EventCountry "SLO"]
[SourceTitle "playchess.com"]
[Source "ChessBase"]
[SourceQuality "1"]
[TimeControl "5400+30"]

1. Nf3 {[%emt 0:00:14]} d5 {[%emt 0:00:44]} 2. g3 {[%emt 0:00:17]} Bg4 {[%emt 0:00:40]} 3. Bg2 {[%emt 0:00:10]} e6 {[%emt 0:00:46]} 4. c4 {[%emt 0:01:22]} c6 {[%emt 0:00:33]} 5. d3 {[%emt 0:03:45]} dxc4 {[%emt 0:02:39]} 6. dxc4 {[%emt 0:03:17]} Qxd1+ {[%emt 0:01:12]} 7. Kxd1 {[%emt 0:00:02]} Nd7 {[%emt 0:02:51]} 8. h3 {[%emt 0:00:53]} Bxf3 {[%emt 0:01:36]} 9. exf3 {[%emt 0:00:54]} O-O-O {[%emt 0:02:46]} 10. Ke2 {[%emt 0:05:19]} Bc5 {[%emt 0:18:44]} 11. Be3 {[%emt 0:02:04]} Ne7 {[%emt 0:02:16]} 12. Rd1 {[%emt 0:00:42]} Bb6 {[%emt 0:15:12]} 13. Nc3 {[%emt 0:03:23]} Nf5 {[%emt 0:01:06]} 14. Ne4 {[%emt 0:04:42]} Nf6 {[%emt 0:05:36]} 15. Bg5 {[%emt 0:15:41]} Rxd1 {[%emt 0:03:44]} 16. Rxd1 {[%emt 0:04:25]} Nd4+ {[%emt 0:00:28]} 17. Kf1 {[%emt 0:00:18]} Nxe4 {[%emt 0:00:32]} 18. fxe4 {[%emt 0:00:08]} f6 {[%emt 0:01:26]} 19. Be3 {[%emt 0:00:30]} Rd8 {[%emt 0:01:36]} 20. h4 {[%emt 0:02:10]} Kc7 {[%emt 0:11:15]} 21. Bh3 {[%emt 0:01:25]} e5 {[%emt 0:00:56]} 22. h5 {[%emt 0:03:24]} Rd6 {[%emt 0:10:05]} 23. Rc1 {[%emt 0:06:41]} Bc5 {[%emt 0:04:27]} 24. Bg4 {[%emt 0:05:29]} a5 {[%emt 0:02:16]} 25. Kg2 {[%emt 0:03:26]} Kb6 {[%emt 0:02:19]} 26. Rc3 {[%emt 0:03:33]} Ne6 {[%emt 0:02:07]} 27. Rb3+ {[%emt 0:06:16]} Ka6 {[%emt 0:00:39]} 28. Bxe6 {[%emt 0:00:23]} Bxe3 {[%emt 0:00:05]} 29. Rxe3 {[%emt 0:18:38]} Rxe6 {[%emt 0:00:02]} 30. Rd3 {[%emt 0:00:15]} Re7 {[%emt 0:00:05]} 31. h6 {[%emt 0:02:08]} gxh6 {[%emt 0:03:37]} 32. Kh3 {[%emt 0:00:01]} h5 {[%emt 0:01:55]} 33. Kh4 {[%emt 0:00:34]} Kb6 {[%emt 0:00:54]} 34. Kxh5 {[%emt 0:00:23]} Kc5 {[%emt 0:00:16]} 35. b3 {[%emt 0:01:42]} Rg7 {[%emt 0:00:22]} 36. Kh6 {[%emt 0:02:02]} Rf7 {[%emt 0:00:13]} 37. Kh5 {[%emt 0:00:44]} Rg7 {[%emt 0:00:02]} 38. Rd8 {[%emt 0:00:32]} a4 {[%emt 0:00:51]} 39. Kh6 {[%emt 0:00:44]} Rg4 {[%emt 0:01:00]} 40. Rd7 {[%emt 0:00:27]} axb3 {[%emt 0:00:30]} 41. axb3 {[%emt 0:00:03]} Rxe4 {[%emt 0:00:28]} 42. Rf7 {[%emt 0:00:54]} Rd4 {[%emt 0:01:42]} 43. Rxf6 {[%emt 0:00:33]} Rd3 {[%emt 0:00:06]} 44. Kxh7 {[%emt 0:00:11]} Rxb3 {[%emt 0:00:05]} 45. g4 {[%emt 0:00:18]} Kxc4 {[%emt 0:00:20]} 46. g5 {[%emt 0:00:03]} Rh3+ {[%emt 0:00:25]} 47. Rh6 {[%emt 0:00:05]} Rf3 {[%emt 0:00:58]} 48. Rf6 {[%emt 0:00:18]} Rh3+ {[%emt 0:00:06]} 49. Kg8 {[%emt 0:00:33]} Kd5 {[%emt 0:01:02]} 50. g6 {[%emt 0:00:52]} Rh6 {[%emt 0:00:13]} 51. Kg7 {[%emt 0:00:11]} Rh1 {[%emt 0:00:20]} 52. Kf7 {[%emt 0:00:17]} b5 {[%emt 0:00:24]} 53. g7 {[%emt 0:00:25]} Rh7 {[%emt 0:00:05]} 54. Kg6 {[%emt 0:01:07]} Rxg7+ {[%emt 0:00:21]} 55. Kxg7 {[%emt 0:00:02]} b4 {[%emt 0:00:28]} 56. Rf8 {[%emt 0:00:10]} c5 {[%emt 0:01:43]} 57. Rb8 {[%emt 0:00:15]} e4 {[%emt 0:01:18]} 58. Kf6 {[%emt 0:00:07]} Kd4 {[%emt 0:00:25]} 59. Kf5 {[%emt 0:01:35]} e3 {[%emt 0:00:30]} 60. Rd8+ {[%emt 0:00:17]} Kc3 {[%emt 0:00:06]} 61. fxe3 {[%emt 0:00:13]} c4 {[%emt 0:00:33]} 62. Ke4 {[%emt 0:00:37]} b3 {[%emt 0:00:24]} 63. Kd5 {[%emt 0:00:38]} Kd3 {[%emt 0:00:31]} 64. Kc5+ {[%emt 0:00:08]} Kc3 {[%emt 0:00:07]} 65. Rd4 {[%emt 0:00:15]} b2 {[%emt 0:00:12]} 66. Rxc4+ {[%emt 0:00:01]} Kd3 {[%emt 0:00:12]} 67. Rb4 {[%emt 0:00:03]} Kc2 {[%emt 0:00:04]} 68. e4 {[%emt 0:00:05]} 1-0

[Event "28th Hit Open-A 2024"]
[Site "Nova Gorica"]
[Date "2024.01.26"]
[Round "1.12"]
[White "Caruso, Augusto"]
[Black "Davies, Nigel R"]
[Result "0-1"]
[ECO "C41"]
[WhiteElo "2159"]
[BlackElo "2349"]
[Annotator "ChessBase"]
[PlyCount "134"]
[EventDate "2024.01.22"]
[EventType "swiss"]
[EventCountry "SLO"]
[SourceTitle "playchess.com"]
[Source "ChessBase"]
[SourceQuality "1"]
[TimeControl "5400+30"]

1. e4 {[%emt 0:00:12]} d6 {[%emt 0:00:17]} 2. d4 {[%emt 0:00:15]} Nf6 {[%emt 0:00:10]} 3. Nc3 {[%emt 0:00:13]} e5 {[%emt 0:00:16]} 4. Nf3 {[%emt 0:00:50]} Nbd7 {[%emt 0:00:08]} 5. Bc4 {[%emt 0:11:32]} Be7 {[%emt 0:00:14]} 6. Rg1 {[%emt 0:00:23]} O-O {[%emt 0:02:09]} 7. g4 {[%emt 0:03:00]} Nb6 {[%emt 0:04:15]} 8. Bb3 {[%emt 0:02:12]} Nxg4 {[%emt 0:21:29]} 9. dxe5 {[%emt 0:10:54]} dxe5 {[%emt 0:04:30]} 10. Qxd8 {[%emt 0:06:57]} Rxd8 {[%emt 0:02:05]} 11. h3 {[%emt 0:06:20]} Nf6 {[%emt 0:00:09]} 12. Ng5 {[%emt 0:11:12]} Rf8 {[%emt 0:00:20]} 13. Be3 {[%emt 0:10:21]} Nfd7 {[%emt 0:04:16]} 14. O-O-O {[%emt 0:09:35]} c6 {[%emt 0:08:45]} 15. Rg3 {[%emt 0:04:17]} g6 {[%emt 0:06:08]} 16. Nf3 {[%emt 0:08:01]} Kg7 {[%emt 0:01:54]} 17. h4 {[%emt 0:00:30]} Nc5 {[%emt 0:06:24]} 18. h5 {[%emt 0:00:51]} Nxb3+ {[%emt 0:02:28]} 19. axb3 {[%emt 0:00:01]} f6 {[%emt 0:02:26]} 20. hxg6 {[%emt 0:04:58]} hxg6 {[%emt 0:00:07]} 21. Rdg1 {[%emt 0:02:17]} g5 {[%emt 0:00:15]} 22. Ne2 {[%emt 0:01:58]} Rh8 {[%emt 0:02:15]} 23. Nxg5 {[%emt 0:03:01]} fxg5 {[%emt 0:00:09]} 24. Bxg5 {[%emt 0:00:01]} Kf7 {[%emt 0:04:36]} 25. Rf3+ {[%emt 0:00:07]} Ke8 {[%emt 0:00:27]} 26. Bxe7 {[%emt 0:00:11]} Kxe7 {[%emt 0:00:06]} 27. Rg7+ {[%emt 0:00:05]} Kd8 {[%emt 0:00:21]} 28. Rff7 {[%emt 0:00:50]} Be6 {[%emt 0:03:59]} 29. Re7 {[%emt 0:00:16]} Re8 {[%emt 0:01:18]} 30. Rxe8+ {[%emt 0:00:42]} Kxe8 {[%emt 0:00:08]} 31. f4 {[%emt 0:00:10]} Nd7 {[%emt 0:02:12]} 32. f5 {[%emt 0:00:31]} Bf7 {[%emt 0:00:13]} 33. Ng1 {[%emt 0:01:30]} Ke7 {[%emt 0:01:29]} 34. Nf3 {[%emt 0:00:12]} Rg8 {[%emt 0:00:08]} 35. Rh7 {[%emt 0:00:11]} Rg4 {[%emt 0:04:23]} 36. Kd2 {[%emt 0:00:14]} Kf6 {[%emt 0:01:34]} 37. Ke3 {[%emt 0:00:11]} Rg2 {[%emt 0:00:28]} 38. Rh6+ {[%emt 0:00:45]} Kg7 {[%emt 0:01:59]} 39. Rd6 {[%emt 0:00:15]} Nf6 {[%emt 0:01:56]} 40. Nxe5 {[%emt 0:00:23]} Rxc2 {[%emt 0:00:09]} 41. Nd7 {[%emt 0:02:30]} Ne8 {[%emt 0:01:15]} 42. f6+ {[%emt 0:00:38]} Kg8 {[%emt 0:00:19]} 43. Rd1 {[%emt 0:00:11]} Be6 {[%emt 0:00:40]} 44. Ne5 {[%emt 0:01:46]} Nxf6 {[%emt 0:01:00]} 45. Rd6 {[%emt 0:00:33]} Ng4+ {[%emt 0:01:18]} 46. Nxg4 {[%emt 0:00:02]} Bxg4 {[%emt 0:00:05]} 47. Rg6+ {[%emt 0:00:02]} Kf7 {[%emt 0:00:08]} 48. Rxg4 {[%emt 0:00:02]} Rxb2 {[%emt 0:00:07]} 49. Rf4+ {[%emt 0:01:40]} Ke6 {[%emt 0:00:14]} 50. Rh4 {[%emt 0:00:03]} Rxb3+ {[%emt 0:00:21]} 51. Kf4 {[%emt 0:00:01]} a5 {[%emt 0:02:04]} 52. Rh6+ {[%emt 0:00:19]} Ke7 {[%emt 0:00:42]} 53. Kf5 {[%emt 0:00:22]} a4 {[%emt 0:01:41]} 54. Rh7+ {[%emt 0:00:21]} Kd6 {[%emt 0:00:08]} 55. e5+ {[%emt 0:00:13]} Kc5 {[%emt 0:00:14]} 56. e6 {[%emt 0:00:49]} b5 {[%emt 0:01:28]} 57. Ra7 {[%emt 0:02:07]} Re3 {[%emt 0:00:49]} 58. Kf6 {[%emt 0:00:16]} a3 {[%emt 0:01:16]} 59. Ra8 {[%emt 0:00:55]} b4 {[%emt 0:01:18]} 60. e7 {[%emt 0:00:03]} Kc4 {[%emt 0:00:35]} 61. Ra6 {[%emt 0:00:36]} Kb5 {[%emt 0:00:32]} 62. Ra8 {[%emt 0:00:14]} c5 {[%emt 0:00:20]} 63. Kf7 {[%emt 0:00:52]} c4 {[%emt 0:00:28]} 64. Rb8+ {[%emt 0:00:26]} Ka4 {[%emt 0:00:09]} 65. Rb6 {[%emt 0:00:03]} Rxe7+ {[%emt 0:00:30]} 66. Kxe7 {[%emt 0:00:02]} c3 {[%emt 0:01:10]} 67. Kd6 {[%emt 0:00:37]} c2 {[%emt 0:00:07]} 0-1

[Event "28th Hit Open-A 2024"]
[Site "Nova Gorica"]
[Date "2024.01.26"]
[Round "1.13"]
[White "Gaal, Zsoka"]
[Black "Szegedy, Matyas"]
[Result "1/2-1/2"]
[ECO "A77"]
[WhiteElo "2341"]
[BlackElo "2129"]
[Annotator "ChessBase"]
[PlyCount "104"]
[EventDate "2024.01.22"]
[EventType "swiss"]
[EventCountry "SLO"]
[SourceTitle "playchess.com"]
[Source "ChessBase"]
[SourceQuality "1"]
[TimeControl "5400+30"]

1. d4 {[%emt 0:00:05]} Nf6 {[%emt 0:00:13]} 2. c4 {[%emt 0:00:08]} c5 {[%emt 0:01:12]} 3. d5 {[%emt 0:00:19]} e6 {[%emt 0:01:37]} 4. Nc3 {[%emt 0:00:11]} exd5 {[%emt 0:00:09]} 5. cxd5 {[%emt 0:00:06]} d6 {[%emt 0:00:10]} 6. Nf3 {[%emt 0:00:14]} g6 {[%emt 0:00:09]} 7. Nd2 {[%emt 0:00:13]} Bg7 {[%emt 0:05:38]} 8. e4 {[%emt 0:00:46]} O-O {[%emt 0:00:12]} 9. Be2 {[%emt 0:00:17]} Re8 {[%emt 0:03:47]} 10. O-O {[%emt 0:00:21]} b6 {[%emt 0:06:39]} 11. a4 {[%emt 0:06:52]} Na6 {[%emt 0:07:18]} 12. Bb5 {[%emt 0:13:49]} Re7 {[%emt 0:01:36]} 13. f3 {[%emt 0:05:42]} Nb4 {[%emt 0:03:02]} 14. Na2 {[%emt 0:09:50]} Nxa2 {[%emt 0:20:05]} 15. Rxa2 {[%emt 0:01:40]} Bd7 {[%emt 0:00:05]} 16. Nc4 {[%emt 0:03:38]} a6 {[%emt 0:09:14]} 17. Bxd7 {[%emt 0:10:49]} Nxd7 {[%emt 0:03:30]} 18. b3 {[%emt 0:06:04]} b5 {[%emt 0:06:04]} 19. axb5 {[%emt 0:00:43]} axb5 {[%emt 0:00:05]} 20. Rxa8 {[%emt 0:00:14]} Qxa8 {[%emt 0:00:05]} 21. Na3 {[%emt 0:01:09]} b4 {[%emt 0:17:57]} 22. Nc4 {[%emt 0:00:09]} Ne5 {[%emt 0:00:41]} 23. Ne3 {[%emt 0:06:01]} Qa6 {[%emt 0:01:35]} 24. Kh1 {[%emt 0:08:05]} Nd3 {[%emt 0:04:00]} 25. Qe2 {[%emt 0:01:44]} Ra7 {[%emt 0:00:28]} 26. f4 {[%emt 0:06:24]} h5 {[%emt 0:04:03]} 27. h3 {[%emt 0:01:37]} Nxc1 {[%emt 0:00:58]} 28. Qxa6 {[%emt 0:00:08]} Rxa6 {[%emt 0:00:03]} 29. Rxc1 {[%emt 0:00:11]} Bh6 {[%emt 0:00:06]} 30. g3 {[%emt 0:04:33]} h4 {[%emt 0:02:38]} 31. Kg2 {[%emt 0:00:24]} Ra2+ {[%emt 0:00:42]} 32. Rc2 {[%emt 0:02:32]} Ra3 {[%emt 0:00:07]} 33. e5 {[%emt 0:02:24]} dxe5 {[%emt 0:01:56]} 34. Ng4 {[%emt 0:02:20]} Bf8 {[%emt 0:00:17]} 35. fxe5 {[%emt 0:02:04]} Rxb3 {[%emt 0:00:06]} 36. d6 {[%emt 0:04:09]} Rd3 {[%emt 0:01:05]} 37. Rxc5 {[%emt 0:00:33]} b3 {[%emt 0:00:24]} 38. gxh4 {[%emt 0:00:42]} f5 {[%emt 0:00:54]} 39. Nf2 {[%emt 0:01:55]} Rd2 {[%emt 0:00:18]} 40. Rb5 {[%emt 0:00:17]} b2 {[%emt 0:00:11]} 41. Kf1 {[%emt 0:01:01]} Kf7 {[%emt 0:00:42]} 42. Ke1 {[%emt 0:00:20]} Rd4 {[%emt 0:00:46]} 43. Rxb2 {[%emt 0:00:24]} Rd5 {[%emt 0:00:06]} 44. Rd2 {[%emt 0:00:47]} Rxe5+ {[%emt 0:00:14]} 45. Kd1 {[%emt 0:00:22]} Ke8 {[%emt 0:00:14]} 46. Nd3 {[%emt 0:00:33]} Rd5 {[%emt 0:00:27]} 47. Nf4 {[%emt 0:00:25]} Rxd2+ {[%emt 0:01:31]} 48. Kxd2 {[%emt 0:00:02]} Bh6 {[%emt 0:00:07]} 49. Ke3 {[%emt 0:00:08]} Kd7 {[%emt 0:00:03]} 50. Kf3 {[%emt 0:00:19]} Bxf4 {[%emt 0:00:06]} 51. Kxf4 {[%emt 0:00:03]} Kxd6 {[%emt 0:00:04]} 52. h5 {[%emt 0:00:05]} gxh5 {[%emt 0:00:04]} 1/2-1/2

[Event "28th Hit Open-A 2024"]
[Site "Nova Gorica"]
[Date "2024.01.26"]
[Round "1.14"]
[White "Hrescak, Ivana"]
[Black "Goroshkov, Maksym"]
[Result "0-1"]
[ECO "E85"]
[WhiteElo "2117"]
[BlackElo "2338"]
[Annotator "RC"]
[PlyCount "112"]
[EventDate "2024.01.22"]
[EventType "swiss"]
[EventCountry "SLO"]
[SourceTitle "playchess.com"]
[Source "ChessBase"]
[SourceQuality "1"]
[TimeControl "5400+30"]

1. d4 {[%emt 0:00:02]} Nf6 {[%emt 0:00:11]} 2. c4 {[%emt 0:00:17]} g6 {[%emt 0:01:57]} 3. Nc3 {[%emt 0:00:09]} Bg7 {[%emt 0:00:07]} 4. e4 {[%emt 0:00:05]} d6 {[%emt 0:00:03]} 5. f3 {[%emt 0:01:47]} O-O {[%emt 0:02:35]} 6. Be3 {[%emt 0:04:01]} e5 {[%emt 0:00:29]} 7. Nge2 {[%emt 0:00:05]} exd4 {[%emt 0:00:11]} 8. Nxd4 {[%emt 0:00:06]} Nc6 {[%emt 0:00:25]} 9. Be2 {[%emt 0:01:16]} Nh5 {[%emt 0:04:23]} 10. O-O {[%emt 0:01:40]} Nf4 {[%emt 0:01:32]} 11. Nxc6 {[%emt 0:04:00]} Nxe2+ {[%emt 0:00:15]} 12. Nxe2 {[%emt 0:00:26]} bxc6 {[%emt 0:00:05]} 13. Bd4 {[%emt 0:00:18]} f6 {[%emt 0:05:42]} 14. Rc1 {[%emt 0:07:42]} Be6 {[%emt 0:00:25]} 15. Qa4 {[%emt 0:01:40]} Qe8 {[%emt 0:03:18]} 16. Qa3 {[%emt 0:02:41]} c5 {[%emt 0:02:22]} 17. Bf2 {[%emt 0:10:54]} f5 {[%emt 0:00:23]} 18. exf5 {[%emt 0:00:20]} Bxc4 {[%emt 0:07:56]} 19. Rxc4 {[%emt 0:08:01]} Qxe2 {[%emt 0:00:06]} 20. Re4 {[%emt 0:03:13]} Qxb2 {[%emt 0:00:12]} 21. Qxb2 {[%emt 0:00:30]} Bxb2 {[%emt 0:00:05]} 22. fxg6 {[%emt 0:01:22]} hxg6 {[%emt 0:00:05]} 23. Re7 {[%emt 0:05:23]} Rf7 {[%emt 0:05:02]} 24. Re2 {[%emt 0:03:52]} Bf6 {[%emt 0:00:00]} 25. Rb1 {[%emt 0:06:08]} c4 {[%emt 0:00:00]} 26. Rd2 {[%emt 0:01:15]} Be5 {[%emt 0:04:43]} 27. Bd4 {[%emt 0:09:13]} Re8 {[%emt 0:03:57]} 28. Rbd1 {[%emt 0:03:03]} a5 {[%emt 0:03:21]} 29. Kf2 {[%emt 0:04:09]} Rf5 {[%emt 0:07:49]} 30. g4 {[%emt 0:02:49]} Rf7 {[%emt 0:03:53]} 31. Bxe5 {[%emt 0:02:51]} Rxe5 {[%emt 0:00:05]} 32. Rd5 {[%emt 0:00:04]} Rfe7 {[%emt 0:00:44]} 33. Rxe5 {[%emt 0:00:10]} Rxe5 {[%emt 0:00:03]} 34. Rd4 {[%emt 0:00:39]} Rc5 {[%emt 0:00:53]} 35. Ke2 {[%emt 0:00:38]} c3 {[%emt 0:02:52]} 36. Kd1 {[%emt 0:00:09]} c2+ {[%emt 0:00:21]} 37. Kc1 {[%emt 0:00:04]} Rc3 {[%emt 0:00:01]} 38. Rd2 {[%emt 0:02:23]} Rxf3 {[%emt 0:00:39]} 39. Rxc2 {[%emt 0:00:04]} c5 {[%emt 0:00:09]} 40. Rd2 {[%emt 0:01:31]} Rf6 {[%emt 0:00:02]} 41. g5 {[%emt 0:03:04]} Re6 {[%emt 0:00:06]} 42. Rf2 {[%emt 0:00:06]} d5 {[%emt 0:00:41]} 43. Kd2 {[%emt 0:03:11]} Re5 {[%emt 0:02:45]} 44. h4 {[%emt 0:00:05]} Rf5 {[%emt 0:00:47]} 45. Rh2 {[%emt 0:01:36]} Kf7 {[%emt 0:00:19]} 46. Ke3 {[%emt 0:00:16]} Re5+ {[%emt 0:00:18]} 47. Kd3 {[%emt 0:00:05]} Re4 {[%emt 0:01:03]} 48. Rf2+ {[%emt 0:01:32]} Ke6 {[%emt 0:00:35]} 49. Rf6+ {[%emt 0:00:20]} Ke5 {[%emt 0:00:03]} 50. Rxg6 {[%emt 0:00:46]} Rxh4 {[%emt 0:00:05]} 51. Ra6 {[%emt 0:00:13]} Rh3+ {[%emt 0:00:20]} 52. Kc2 {[%emt 0:00:39]} Rg3 {[%emt 0:00:22]} 53. Rxa5 {[%emt 0:00:54]} Kd4 {[%emt 0:00:05]} 54. Ra8 {[%emt 0:00:31]} Rxg5 {[%emt 0:00:06]} 55. Rh8 {[%emt 0:01:11]} Rg2+ {[%emt 0:00:22]} 56. Kb1 {[%emt 0:00:13]} Kc4 {[%emt 0:00:29]} 0-1

[Event "28th Hit Open-A 2024"]
[Site "Nova Gorica"]
[Date "2024.01.26"]
[Round "1.15"]
[White "Ongut, Tamas Gunes"]
[Black "Centrih, Aleks"]
[Result "1-0"]
[ECO "E73"]
[WhiteElo "2310"]
[BlackElo "2082"]
[Annotator "RC"]
[PlyCount "111"]
[EventDate "2024.01.22"]
[EventType "swiss"]
[EventCountry "SLO"]
[SourceTitle "playchess.com"]
[Source "ChessBase"]
[SourceQuality "1"]
[TimeControl "5400+30"]

1. d4 {[%emt 0:00:04]} Nf6 {[%emt 0:00:11]} 2. c4 {[%emt 0:00:07]} g6 {[%emt 0:00:06]} 3. Nc3 {[%emt 0:00:05]} Bg7 {[%emt 0:00:13]} 4. e4 {[%emt 0:00:06]} d6 {[%emt 0:00:05]} 5. Be2 {[%emt 0:00:18]} O-O {[%emt 0:02:08]} 6. Be3 {[%emt 0:00:27]} c5 {[%emt 0:02:47]} 7. d5 {[%emt 0:00:10]} e6 {[%emt 0:00:18]} 8. Nf3 {[%emt 0:00:07]} exd5 {[%emt 0:00:16]} 9. cxd5 {[%emt 0:00:07]} b5 {[%emt 0:02:37]} 10. e5 {[%emt 0:00:09]} dxe5 {[%emt 0:00:11]} 11. Bxc5 {[%emt 0:00:07]} Re8 {[%emt 0:00:05]} 12. Bxb5 {[%emt 0:00:07]} Nbd7 {[%emt 0:00:04]} 13. Be3 {[%emt 0:00:14]} Ng4 {[%emt 0:01:05]} 14. O-O {[%emt 0:00:09]} Nxe3 {[%emt 0:00:03]} 15. fxe3 {[%emt 0:00:07]} Rb8 {[%emt 0:00:40]} 16. Qd2 {[%emt 0:00:07]} Rf8 {[%emt 0:12:04]} 17. Rac1 {[%emt 0:04:01]} Qb6 {[%emt 0:05:55]} 18. b3 {[%emt 0:03:34]} e4 {[%emt 0:39:07]} 19. Nd4 {[%emt 0:00:40]} Ne5 {[%emt 0:10:09]} 20. Nxe4 {[%emt 0:07:27]} Ng4 {[%emt 0:00:31]} 21. Bc6 {[%emt 0:09:08]} Nxe3 {[%emt 0:04:08]} 22. Nf6+ {[%emt 0:06:06]} Bxf6 {[%emt 0:00:01]} 23. Rxf6 {[%emt 0:00:08]} Nf5 {[%emt 0:00:06]} 24. Rc4 {[%emt 0:03:09]} Qd8 {[%emt 0:10:40]} 25. Rxf5 {[%emt 0:05:10]} Bxf5 {[%emt 0:00:30]} 26. Nxf5 {[%emt 0:01:44]} gxf5 {[%emt 0:00:42]} 27. Qh6 {[%emt 0:01:34]} Qe7 {[%emt 0:01:17]} 28. h3 {[%emt 0:01:49]} Qe1+ {[%emt 0:02:09]} 29. Kh2 {[%emt 0:00:05]} Qe5+ {[%emt 0:00:05]} 30. Kg1 {[%emt 0:04:19]} Qe1+ {[%emt 0:01:04]} 31. Kh2 {[%emt 0:00:07]} Qe5+ {[%emt 0:00:04]} 32. Qf4 {[%emt 0:01:19]} f6 {[%emt 0:01:40]} 33. Ra4 {[%emt 0:01:57]} Rf7 {[%emt 0:05:08]} 34. d6 {[%emt 0:00:07]} Kf8 {[%emt 0:00:34]} 35. d7 {[%emt 0:01:45]} Ke7 {[%emt 0:00:43]} 36. g3 {[%emt 0:03:29]} Qxf4 {[%emt 0:00:30]} 37. Rxf4 {[%emt 0:01:26]} Kd6 {[%emt 0:00:21]} 38. Ba4 {[%emt 0:00:57]} Ke5 {[%emt 0:00:39]} 39. Rc4 {[%emt 0:00:05]} Kd6 {[%emt 0:00:31]} 40. Rc8 {[%emt 0:01:23]} Rf8 {[%emt 0:00:16]} 41. Re8 {[%emt 0:00:14]} Rd8 {[%emt 0:00:44]} 42. Kg2 {[%emt 0:00:08]} Kc7 {[%emt 0:00:12]} 43. Kf3 {[%emt 0:02:25]} Rf7 {[%emt 0:00:35]} 44. Kf4 {[%emt 0:00:06]} Rg7 {[%emt 0:00:34]} 45. Re6 {[%emt 0:00:08]} Rg6 {[%emt 0:00:37]} 46. Ra6 {[%emt 0:00:07]} Kb7 {[%emt 0:00:32]} 47. Ra5 {[%emt 0:00:05]} Rg5 {[%emt 0:00:31]} 48. Rc5 {[%emt 0:02:30]} h6 {[%emt 0:00:31]} 49. b4 {[%emt 0:00:22]} a6 {[%emt 0:00:29]} 50. Rxf5 {[%emt 0:02:52]} Rxf5+ {[%emt 0:00:26]} 51. Kxf5 {[%emt 0:00:07]} Kc7 {[%emt 0:00:31]} 52. Kxf6 {[%emt 0:01:03]} Rg8 {[%emt 0:00:32]} 53. g4 {[%emt 0:00:07]} Rb8 {[%emt 0:00:31]} 54. Ke7 {[%emt 0:00:11]} Rg8 {[%emt 0:00:24]} 55. Bb3 {[%emt 0:00:07]} Rg7+ {[%emt 0:00:04]} 56. Bf7 {[%emt 0:00:07]} 1-0